[Event "Romanian-ch Open 2022"]
[Site "Eforie Nord"]
[Date "2022.02.25"]
[Round "7.23"]
[White "Vilcu, Matei-Stefan"]
[Black "Prelipcean, Eric-Matei"]
[Result "1-0"]
[ECO "B45"]
[WhiteElo "2112"]
[BlackElo "1935"]
[Annotator "NA"]
[PlyCount "69"]
[EventDate "2022.02.20"]
[EventType "swiss"]
[EventCountry "ROU"]
[SourceTitle "playchess.com"]
[Source "ChessBase"]
[SourceQuality "1"]
[TimeControl "40/5400+30:900+30"]

1. e4 {[%emt 0:00:01]} c5 {[%emt 0:00:06]} 2. Nf3 {[%emt 0:00:04]} Nc6 {[%emt 0:00:10]} 3. d4 {[%emt 0:00:07]} cxd4 {[%emt 0:00:06]} 4. Nxd4 {[%emt 0:00:02]} Nf6 {[%emt 0:00:07]} 5. Nc3 {[%emt 0:00:03]} e6 {[%emt 0:00:06]} 6. g3 {[%emt 0:01:39]} Bb4 {[%emt 0:00:14]} 7. Bg2 {[%emt 0:00:04]} d6 {[%emt 0:00:37]} 8. O-O {[%emt 0:00:06]} O-O {[%emt 0:00:06]} 9. Nde2 {[%emt 0:00:09]} a6 {[%emt 0:01:09]} 10. h3 {[%emt 0:00:22]} Bc5 {[%emt 0:02:53]} 11. a4 {[%emt 0:01:11]} Nb4 {[%emt 0:06:24]} 12. b3 {[%emt 0:12:48]} d5 {[%emt 0:10:00]} 13. exd5 {[%emt 0:05:42]} Nbxd5 {[%emt 0:00:46]} 14. Nxd5 {[%emt 0:12:51]} Nxd5 {[%emt 0:00:52]} 15. Bb2 {[%emt 0:00:10]} Ne7 {[%emt 0:04:51]} 16. Qxd8 {[%emt 0:05:29]} Rxd8 {[%emt 0:00:29]} 17. Rad1 {[%emt 0:03:35]} Re8 {[%emt 0:04:05]} 18. Rd2 {[%emt 0:02:21]} f6 {[%emt 0:02:32]} 19. Rfd1 {[%emt 0:00:24]} Kf7 {[%emt 0:01:31]} 20. Bd4 {[%emt 0:01:56]} Bxd4 {[%emt 0:04:55]} 21. Rxd4 {[%emt 0:03:04]} Rb8 {[%emt 0:01:31]} 22. Nc3 {[%emt 0:03:45]} e5 {[%emt 0:20:31]} 23. Rb4 {[%emt 0:08:19]} Bf5 {[%emt 0:00:23]} 24. Ne4 {[%emt 0:12:45]} Bxe4 {[%emt 0:06:29]} 25. Bxe4 {[%emt 0:00:39]} b6 {[%emt 0:00:14]} 26. Rd6 {[%emt 0:02:21]} Nc8 {[%emt 0:01:05]} 27. Bd5+ {[%emt 0:09:23]} Kf8 {[%emt 0:07:38]} 28. Rd7 {[%emt 0:00:28]} Re7 {[%emt 0:00:27]} 29. Rd8+ {[%emt 0:00:29]} Re8 {[%emt 0:00:18]} 30. Rxe8+ {[%emt 0:01:23]} Kxe8 {[%emt 0:00:02]} 31. a5 {[%emt 0:00:56]} Kd7 {[%emt 0:04:33]} 32. axb6 {[%emt 0:03:22]} Rxb6 {[%emt 0:00:47]} 33. Ra4 {[%emt 0:00:37]} Na7 {[%emt 0:05:47]} 34. Bc4 {[%emt 0:00:46]} Nb5 {[%emt 0:00:06]} 35. Rxa6 {[%emt 0:01:16]} 1-0

[Event "Romanian-ch Open 2022"]
[Site "Eforie Nord"]
[Date "2022.02.25"]
[Round "7.24"]
[White "Craciun, Sasha-Matei"]
[Black "Dragomirescu, Calin"]
[Result "1/2-1/2"]
[ECO "B33"]
[WhiteElo "1871"]
[BlackElo "2092"]
[Annotator "NA"]
[PlyCount "129"]
[EventDate "2022.02.20"]
[EventType "swiss"]
[EventCountry "ROU"]
[SourceTitle "playchess.com"]
[Source "ChessBase"]
[SourceQuality "1"]
[TimeControl "40/5400+30:900+30"]

1. e4 {[%emt 0:00:02]} c5 {[%emt 0:00:21]} 2. Nf3 {[%emt 0:00:09]} Nc6 {[%emt 0:00:05]} 3. d4 {[%emt 0:00:04]} cxd4 {[%emt 0:00:04]} 4. Nxd4 {[%emt 0:00:07]} Nf6 {[%emt 0:00:05]} 5. Nc3 {[%emt 0:00:05]} e5 {[%emt 0:00:03]} 6. Ndb5 {[%emt 0:00:13]} d6 {[%emt 0:00:05]} 7. Bg5 {[%emt 0:00:05]} a6 {[%emt 0:00:07]} 8. Na3 {[%emt 0:00:05]} b5 {[%emt 0:00:04]} 9. Nd5 {[%emt 0:00:05]} Be7 {[%emt 0:00:15]} 10. Bxf6 {[%emt 0:00:36]} Bxf6 {[%emt 0:00:08]} 11. c3 {[%emt 0:00:27]} O-O {[%emt 0:00:12]} 12. Nc2 {[%emt 0:01:00]} Rb8 {[%emt 0:00:25]} 13. Nce3 {[%emt 0:07:23]} Bg5 {[%emt 0:00:22]} 14. g3 {[%emt 0:03:22]} Bxe3 {[%emt 0:00:14]} 15. Nxe3 {[%emt 0:00:03]} Ne7 {[%emt 0:02:36]} 16. Bg2 {[%emt 0:00:47]} Be6 {[%emt 0:00:23]} 17. Qd2 {[%emt 0:03:19]} Qb6 {[%emt 0:01:22]} 18. O-O {[%emt 0:03:45]} b4 {[%emt 0:00:28]} 19. cxb4 {[%emt 0:12:32]} Qxb4 {[%emt 0:00:07]} 20. Qxb4 {[%emt 0:00:04]} Rxb4 {[%emt 0:00:08]} 21. b3 {[%emt 0:00:03]} Rd4 {[%emt 0:03:45]} 22. Rfd1 {[%emt 0:05:05]} Nc6 {[%emt 0:01:08]} 23. Bf1 {[%emt 0:02:00]} Rxd1 {[%emt 0:02:42]} 24. Rxd1 {[%emt 0:00:05]} Nd4 {[%emt 0:00:04]} 25. Rc1 {[%emt 0:04:32]} g6 {[%emt 0:04:48]} 26. Rc7 {[%emt 0:02:44]} a5 {[%emt 0:09:13]} 27. Bc4 {[%emt 0:08:53]} a4 {[%emt 0:06:15]} 28. b4 {[%emt 0:10:03]} Bxc4 {[%emt 0:05:47]} 29. Nxc4 {[%emt 0:00:32]} Nb5 {[%emt 0:04:26]} 30. Rc6 {[%emt 0:04:17]} Nc3 {[%emt 0:00:50]} 31. Nxd6 {[%emt 0:00:15]} Nxa2 {[%emt 0:00:08]} 32. b5 {[%emt 0:00:13]} Nb4 {[%emt 0:02:02]} 33. Rc4 {[%emt 0:00:39]} Rd8 {[%emt 0:02:52]} 34. Rxb4 {[%emt 0:00:33]} Rxd6 {[%emt 0:00:02]} 35. b6 {[%emt 0:01:34]} Rd8 {[%emt 0:00:01]} 36. Rxa4 {[%emt 0:00:12]} Rd1+ {[%emt 0:00:08]} 37. Kg2 {[%emt 0:00:06]} Rb1 {[%emt 0:00:04]} 38. Ra8+ {[%emt 0:00:08]} Kg7 {[%emt 0:00:08]} 39. Rb8 {[%emt 0:00:02]} h5 {[%emt 0:00:44]} 40. h4 {[%emt 0:00:00]} Rb3 {[%emt 0:00:00]} 41. b7 {[%emt 0:02:15]} Kf6 {[%emt 0:04:31]} 42. Kf1 {[%emt 0:00:32]} Rb1+ {[%emt 0:03:07]} 43. Ke2 {[%emt 0:00:01]} Rb2+ {[%emt 0:00:07]} 44. Kd3 {[%emt 0:00:52]} Rb1 {[%emt 0:01:41]} 45. Kc4 {[%emt 0:00:45]} Rc1+ {[%emt 0:02:12]} 46. Kd5 {[%emt 0:00:21]} Rd1+ {[%emt 0:00:10]} 47. Kc6 {[%emt 0:00:10]} Rc1+ {[%emt 0:00:17]} 48. Kd7 {[%emt 0:00:05]} Rb1 {[%emt 0:01:43]} 49. f3 {[%emt 0:02:07]} Rb2 {[%emt 0:00:47]} 50. g4 {[%emt 0:01:45]} hxg4 {[%emt 0:01:23]} 51. fxg4 {[%emt 0:00:02]} Kg7 {[%emt 0:02:23]} 52. Ke7 {[%emt 0:02:41]} f6 {[%emt 0:02:49]} 53. h5 {[%emt 0:00:22]} gxh5 {[%emt 0:01:32]} 54. gxh5 {[%emt 0:00:02]} Rb6 {[%emt 0:01:10]} 55. h6+ {[%emt 0:00:59]} Kh7 {[%emt 0:00:07]} 56. Kf7 {[%emt 0:00:09]} f5 {[%emt 0:00:28]} 57. exf5 {[%emt 0:00:09]} e4 {[%emt 0:00:02]} 58. f6 {[%emt 0:01:34]} e3 {[%emt 0:00:07]} 59. Re8 {[%emt 0:00:23]} Rxb7+ {[%emt 0:00:55]} 60. Kf8 {[%emt 0:02:53]} Kg6 {[%emt 0:14:41]} 61. f7 {[%emt 0:08:36]} Rxf7+ {[%emt 0:01:33]} 62. Kg8 {[%emt 0:00:02]} Rh7 {[%emt 0:06:27]} 63. Rxe3 {[%emt 0:00:15]} Rxh6 {[%emt 0:00:10]} 64. Re6+ {[%emt 0:00:02]} Kg5 {[%emt 0:00:09]} 65. Rxh6 {[%emt 0:34:49]} 1/2-1/2

[Event "Romanian-ch Open 2022"]
[Site "Eforie Nord"]
[Date "2022.02.25"]
[Round "7.25"]
[White "Serban, Cristian-Stefan"]
[Black "Ciocani, Iosif"]
[Result "1-0"]
[ECO "E97"]
[WhiteElo "2090"]
[BlackElo "1876"]
[Annotator "NA"]
[PlyCount "91"]
[EventDate "2022.02.20"]
[EventType "swiss"]
[EventCountry "ROU"]
[SourceTitle "playchess.com"]
[Source "ChessBase"]
[SourceQuality "1"]
[TimeControl "40/5400+30:900+30"]

1. d4 {[%emt 0:00:01]} Nf6 {[%emt 0:00:08]} 2. c4 {[%emt 0:00:06]} g6 {[%emt 0:00:05]} 3. Nc3 {[%emt 0:00:03]} Bg7 {[%emt 0:00:08]} 4. e4 {[%emt 0:00:04]} d6 {[%emt 0:00:05]} 5. Nf3 {[%emt 0:00:04]} O-O {[%emt 0:00:07]} 6. Be2 {[%emt 0:00:03]} e5 {[%emt 0:00:06]} 7. O-O {[%emt 0:00:05]} Nc6 {[%emt 0:00:04]} 8. Be3 {[%emt 0:06:39]} h6 {[%emt 0:26:30]} 9. d5 {[%emt 0:00:11]} Ne7 {[%emt 0:00:15]} 10. Nd2 {[%emt 0:01:11]} Nd7 {[%emt 0:06:55]} 11. b4 {[%emt 0:03:35]} f5 {[%emt 0:00:26]} 12. f3 {[%emt 0:00:05]} f4 {[%emt 0:00:04]} 13. Bf2 {[%emt 0:00:03]} a5 {[%emt 0:23:17]} 14. a3 {[%emt 0:00:24]} b6 {[%emt 0:07:15]} 15. bxa5 {[%emt 0:02:52]} Rxa5 {[%emt 0:00:37]} 16. Nb3 {[%emt 0:00:05]} Ra8 {[%emt 0:00:19]} 17. a4 {[%emt 0:00:06]} g5 {[%emt 0:03:38]} 18. a5 {[%emt 0:02:54]} Nc5 {[%emt 0:03:12]} 19. axb6 {[%emt 0:03:03]} Rxa1 {[%emt 0:00:07]} 20. Nxa1 {[%emt 0:00:02]} cxb6 {[%emt 0:00:09]} 21. Nc2 {[%emt 0:03:39]} Bd7 {[%emt 0:00:36]} 22. Na3 {[%emt 0:00:49]} Qb8 {[%emt 0:09:25]} 23. Nab5 {[%emt 0:03:37]} Nc8 {[%emt 0:01:38]} 24. Qa1 {[%emt 0:02:41]} Rf7 {[%emt 0:01:50]} 25. Rb1 {[%emt 0:04:20]} Bf8 {[%emt 0:01:16]} 26. Bxc5 {[%emt 0:03:16]} dxc5 {[%emt 0:04:36]} 27. Qa6 {[%emt 0:00:37]} h5 {[%emt 0:03:59]} 28. Na4 {[%emt 0:01:05]} Be7 {[%emt 0:02:53]} 29. Nbc3 {[%emt 0:00:20]} Rf6 {[%emt 0:00:59]} 30. Nb2 {[%emt 0:02:35]} b5 {[%emt 0:00:40]} 31. Qa5 {[%emt 0:00:07]} b4 {[%emt 0:01:13]} 32. Nd3 {[%emt 0:00:06]} Qb6 {[%emt 0:00:23]} 33. Qa8 {[%emt 0:01:40]} Bd6 {[%emt 0:00:40]} 34. Nb5 {[%emt 0:00:04]} Rf8 {[%emt 0:00:43]} 35. Nxd6 {[%emt 0:00:49]} Nxd6 {[%emt 0:00:09]} 36. Qa2 {[%emt 0:00:23]} Re8 {[%emt 0:01:13]} 37. Bd1 {[%emt 0:00:05]} Kf7 {[%emt 0:01:07]} 38. Bb3 {[%emt 0:00:05]} g4 {[%emt 0:00:36]} 39. Kh1 {[%emt 0:00:16]} g3 {[%emt 0:01:20]} 40. Qb2 {[%emt 0:00:00]} Nxc4 {[%emt 0:00:00]} 41. Bxc4 {[%emt 0:00:52]} Qd6 {[%emt 0:01:16]} 42. Ra1 {[%emt 0:00:32]} Bc8 {[%emt 0:00:40]} 43. Ra7+ {[%emt 0:00:18]} Kg6 {[%emt 0:00:25]} 44. Nxf4+ {[%emt 0:00:16]} Kg5 {[%emt 0:00:14]} 45. Rg7+ {[%emt 0:00:20]} Kh6 {[%emt 0:00:33]} 46. Rg6+ {[%emt 1:18:02]} 1-0

[Event "Romanian-ch Open 2022"]
[Site "Eforie Nord"]
[Date "2022.02.25"]
[Round "7.26"]
[White "Mazilu, Stefan-Fabian"]
[Black "Ignat, Matei-Marius"]
[Result "1/2-1/2"]
[ECO "C07"]
[WhiteElo "1886"]
[BlackElo "2053"]
[Annotator "NA"]
[PlyCount "129"]
[EventDate "2022.02.20"]
[EventType "swiss"]
[EventCountry "ROU"]
[SourceTitle "playchess.com"]
[Source "ChessBase"]
[SourceQuality "1"]
[TimeControl "40/5400+30:900+30"]

1. e4 {[%emt 0:00:05]} e6 {[%emt 0:00:03]} 2. d4 {[%emt 0:00:05]} d5 {[%emt 0:00:02]} 3. Nd2 {[%emt 0:00:06]} c5 {[%emt 0:00:05]} 4. exd5 {[%emt 0:00:08]} Qxd5 {[%emt 0:00:09]} 5. Ngf3 {[%emt 0:00:07]} cxd4 {[%emt 0:00:04]} 6. Bc4 {[%emt 0:00:08]} Qd6 {[%emt 0:00:13]} 7. O-O {[%emt 0:00:09]} Nf6 {[%emt 0:00:02]} 8. Re1 {[%emt 0:00:08]} Nc6 {[%emt 0:01:28]} 9. Nb3 {[%emt 0:00:11]} Be7 {[%emt 0:02:18]} 10. Nbxd4 {[%emt 0:00:37]} Nxd4 {[%emt 0:00:03]} 11. Nxd4 {[%emt 0:00:08]} O-O {[%emt 0:01:58]} 12. c3 {[%emt 0:00:57]} Qc7 {[%emt 0:05:11]} 13. Bb3 {[%emt 0:01:46]} b6 {[%emt 0:07:22]} 14. Qf3 {[%emt 0:01:14]} Bb7 {[%emt 0:00:16]} 15. Bf4 {[%emt 0:00:35]} Bxf3 {[%emt 0:05:53]} 16. Bxc7 {[%emt 0:00:11]} Bd5 {[%emt 0:00:02]} 17. h3 {[%emt 0:24:52]} Rac8 {[%emt 0:07:31]} 18. Bh2 {[%emt 0:05:47]} Rfd8 {[%emt 0:03:23]} 19. Bc2 {[%emt 0:10:45]} Bc5 {[%emt 0:08:09]} 20. Red1 {[%emt 0:21:57]} Bxg2 {[%emt 0:07:34]} 21. Nxe6 {[%emt 0:09:06]} Rxd1+ {[%emt 0:00:55]} 22. Rxd1 {[%emt 0:00:05]} Bxh3 {[%emt 0:03:10]} 23. Nxc5 {[%emt 0:00:10]} bxc5 {[%emt 0:00:03]} 24. Rd6 {[%emt 0:03:50]} Re8 {[%emt 0:09:19]} 25. Bg3 {[%emt 0:03:01]} h5 {[%emt 0:11:45]} 26. f3 {[%emt 0:05:09]} Be6 {[%emt 0:07:26]} 27. b3 {[%emt 0:04:11]} Nd5 {[%emt 0:16:20]} 28. c4 {[%emt 0:03:34]} Ne3 {[%emt 0:01:52]} 29. Be4 {[%emt 0:00:29]} Nf5 {[%emt 0:01:22]} 30. Bxf5 {[%emt 0:00:19]} Bxf5 {[%emt 0:00:01]} 31. Bf2 {[%emt 0:01:47]} Re2 {[%emt 0:00:59]} 32. Rd5 {[%emt 0:00:30]} Bb1 {[%emt 0:00:35]} 33. Rxc5 {[%emt 0:00:11]} Bxa2 {[%emt 0:00:08]} 34. b4 {[%emt 0:00:17]} a6 {[%emt 0:01:11]} 35. Rc8+ {[%emt 0:00:46]} Kh7 {[%emt 0:00:04]} 36. c5 {[%emt 0:00:06]} Rc2 {[%emt 0:00:56]} 37. c6 {[%emt 0:02:45]} Be6 {[%emt 0:00:10]} 38. Rc7 {[%emt 0:00:19]} Kg6 {[%emt 0:00:53]} 39. Bc5 {[%emt 0:00:44]} Bd5 {[%emt 0:00:28]} 40. Ra7 {[%emt 0:00:00]} Bxf3 {[%emt 0:00:00]} 41. c7 {[%emt 0:02:54]} Bg4 {[%emt 0:00:43]} 42. Rxa6+ {[%emt 0:00:09]} Kg5 {[%emt 0:01:06]} 43. Ra8 {[%emt 0:00:47]} h4 {[%emt 0:06:09]} 44. c8=Q {[%emt 0:00:25]} Bxc8 {[%emt 0:00:04]} 45. Rxc8 {[%emt 0:00:05]} Rb2 {[%emt 0:01:27]} 46. Be7+ {[%emt 0:03:50]} f6 {[%emt 0:00:54]} 47. Rc4 {[%emt 0:02:45]} h3 {[%emt 0:04:02]} 48. Bc5 {[%emt 0:01:52]} Kf5 {[%emt 0:02:18]} 49. Rh4 {[%emt 0:00:41]} h2+ {[%emt 0:00:46]} 50. Rxh2 {[%emt 0:00:57]} Rb1+ {[%emt 0:00:17]} 51. Kg2 {[%emt 0:00:11]} Rb2+ {[%emt 0:00:04]} 52. Kg3 {[%emt 0:00:05]} Rxh2 {[%emt 0:00:10]} 53. Kxh2 {[%emt 0:00:04]} Ke4 {[%emt 0:00:05]} 54. Kg3 {[%emt 0:00:41]} Kd5 {[%emt 0:02:22]} 55. Kf4 {[%emt 0:00:58]} g5+ {[%emt 0:00:18]} 56. Kf5 {[%emt 0:00:42]} Kc4 {[%emt 0:00:08]} 57. Be7 {[%emt 0:03:04]} Kb5 {[%emt 0:01:28]} 58. Bd6 {[%emt 0:00:12]} Kc4 {[%emt 0:00:49]} 59. Bf8 {[%emt 0:00:55]} Kb5 {[%emt 0:00:22]} 60. Be7 {[%emt 0:00:16]} Kc4 {[%emt 0:00:21]} 61. Bd6 {[%emt 0:00:05]} Kb5 {[%emt 0:01:38]} 62. Ke4 {[%emt 0:00:12]} Kc4 {[%emt 0:00:07]} 63. Be7 {[%emt 0:01:07]} g4 {[%emt 0:00:56]} 64. Bd6 {[%emt 0:00:45]} f5+ {[%emt 0:00:24]} 65. Kxf5 {[%emt 0:07:03]} 1/2-1/2

[Event "Romanian-ch Open 2022"]
[Site "Eforie Nord"]
[Date "2022.02.25"]
[Round "7.27"]
[White "Butolo, Alexandru-Mircea"]
[Black "Bobocea, Laurentiu-Vlad"]
[Result "1-0"]
[ECO "B96"]
[WhiteElo "1850"]
[BlackElo "1987"]
[Annotator "NA"]
[PlyCount "63"]
[EventDate "2022.02.20"]
[EventType "swiss"]
[EventCountry "ROU"]
[SourceTitle "playchess.com"]
[Source "ChessBase"]
[SourceQuality "1"]
[TimeControl "40/5400+30:900+30"]

1. e4 {[%emt 0:00:01]} c5 {[%emt 0:00:40]} 2. Nf3 {[%emt 0:00:37]} d6 {[%emt 0:00:04]} 3. d4 {[%emt 0:01:11]} cxd4 {[%emt 0:00:04]} 4. Nxd4 {[%emt 0:00:05]} Nf6 {[%emt 0:00:04]} 5. Nc3 {[%emt 0:00:09]} a6 {[%emt 0:00:02]} 6. Bg5 {[%emt 0:00:50]} e6 {[%emt 0:00:11]} 7. f4 {[%emt 0:00:51]} h6 {[%emt 0:00:05]} 8. Bh4 {[%emt 0:02:32]} Qb6 {[%emt 0:00:07]} 9. Qd2 {[%emt 0:04:30]} Qxb2 {[%emt 0:00:59]} 10. Rb1 {[%emt 0:00:32]} Qa3 {[%emt 0:00:02]} 11. f5 {[%emt 0:05:48]} Be7 {[%emt 0:01:19]} 12. fxe6 {[%emt 0:07:41]} fxe6 {[%emt 0:00:06]} 13. Bc4 {[%emt 0:25:18]} Nxe4 {[%emt 0:01:02]} 14. Nxe4 {[%emt 0:00:16]} Bxh4+ {[%emt 0:00:02]} 15. g3 {[%emt 0:00:05]} Bg5 {[%emt 0:00:02]} 16. Nxg5 {[%emt 0:01:52]} hxg5 {[%emt 0:00:11]} 17. Rb3 {[%emt 0:06:48]} Qa4 {[%emt 0:52:06]} 18. Rf1 {[%emt 0:20:35]} Nc6 {[%emt 0:22:37]} 19. Nxe6 {[%emt 0:00:44]} Bxe6 {[%emt 0:01:08]} 20. Bxe6 {[%emt 0:00:04]} Nd4 {[%emt 0:01:02]} 21. Bf7+ {[%emt 0:03:30]} Kd7 {[%emt 0:07:55]} 22. Rxb7+ {[%emt 0:11:02]} Kc8 {[%emt 0:00:25]} 23. Rb2 {[%emt 0:02:30]} Ra7 {[%emt 0:01:50]} 24. Kd1 {[%emt 0:02:51]} Rf8 {[%emt 0:05:00]} 25. Rb4 {[%emt 0:00:24]} Qxa2 {[%emt 0:04:11]} 26. Qxd4 {[%emt 0:01:05]} Rfxf7 {[%emt 0:00:45]} 27. Re1 {[%emt 0:01:04]} Rac7 {[%emt 0:01:28]} 28. Qg4+ {[%emt 0:00:31]} Rcd7 {[%emt 0:00:26]} 29. Re8+ {[%emt 0:00:54]} Kc7 {[%emt 0:00:01]} 30. Qd4 {[%emt 0:00:29]} Qa5 {[%emt 0:01:04]} 31. Rc4+ {[%emt 0:00:29]} Kb7 {[%emt 0:01:02]} 32. Rb4+ {[%emt 0:01:12]} 1-0

[Event "Romanian-ch Open 2022"]
[Site "Eforie Nord"]
[Date "2022.02.25"]
[Round "7.28"]
[White "Coicev, Matei-Andrei"]
[Black "Pirvulescu, Adrian"]
[Result "1-0"]
[ECO "B04"]
[WhiteElo "1970"]
[BlackElo "1843"]
[Annotator "NA"]
[PlyCount "57"]
[EventDate "2022.02.20"]
[EventType "swiss"]
[EventCountry "ROU"]
[SourceTitle "playchess.com"]
[Source "ChessBase"]
[SourceQuality "1"]
[TimeControl "40/5400+30:900+30"]

1. e4 {[%emt 0:00:17]} Nf6 {[%emt 0:00:20]} 2. e5 {[%emt 0:00:43]} Nd5 {[%emt 0:00:06]} 3. d4 {[%emt 0:00:44]} d6 {[%emt 0:00:06]} 4. Nf3 {[%emt 0:00:58]} Nb6 {[%emt 0:00:28]} 5. a4 {[%emt 0:01:31]} a5 {[%emt 0:00:12]} 6. Bb5+ {[%emt 0:00:32]} c6 {[%emt 0:00:46]} 7. Be2 {[%emt 0:00:36]} dxe5 {[%emt 0:02:30]} 8. Nxe5 {[%emt 0:00:23]} g6 {[%emt 0:01:15]} 9. O-O {[%emt 0:02:04]} Bg7 {[%emt 0:00:24]} 10. Bf4 {[%emt 0:02:24]} N8d7 {[%emt 0:05:20]} 11. Nf3 {[%emt 0:01:28]} h6 {[%emt 0:06:12]} 12. h3 {[%emt 0:04:58]} Nd5 {[%emt 0:04:35]} 13. Bg3 {[%emt 0:01:37]} Qb6 {[%emt 0:03:15]} 14. Ra3 {[%emt 0:05:22]} Qxb2 {[%emt 0:05:54]} 15. Rb3 {[%emt 0:02:05]} Qa1 {[%emt 0:05:30]} 16. c3 {[%emt 0:17:15]} N7f6 {[%emt 0:35:58]} 17. Nfd2 {[%emt 0:00:45]} Bf5 {[%emt 0:03:16]} 18. Qc1 {[%emt 0:07:21]} Bxb1 {[%emt 0:07:16]} 19. Nxb1 {[%emt 0:00:49]} Qa2 {[%emt 0:03:49]} 20. Bc4 {[%emt 0:21:39]} Ne4 {[%emt 0:10:31]} 21. Rb4 {[%emt 0:05:45]} Nxg3 {[%emt 0:02:43]} 22. fxg3 {[%emt 0:00:38]} Qa1 {[%emt 0:00:16]} 23. Rb3 {[%emt 0:05:36]} Qxa4 {[%emt 0:00:46]} 24. Nd2 {[%emt 0:00:32]} Bxd4+ {[%emt 0:00:31]} 25. cxd4 {[%emt 0:00:15]} b5 {[%emt 0:00:30]} 26. Bxb5 {[%emt 0:03:53]} cxb5 {[%emt 0:00:30]} 27. Qc6+ {[%emt 0:00:12]} Kf8 {[%emt 0:00:25]} 28. Qxa8+ {[%emt 0:00:05]} Kg7 {[%emt 0:00:06]} 29. Qxd5 {[%emt 0:00:05]} 1-0

[Event "Romanian-ch Open 2022"]
[Site "Eforie Nord"]
[Date "2022.02.25"]
[Round "7.29"]
[White "Chis, Bogdan-Vasile"]
[Black "Negrean, Andrei"]
[Result "0-1"]
[ECO "B23"]
[WhiteElo "1685"]
[BlackElo "1941"]
[Annotator "NA"]
[PlyCount "96"]
[EventDate "2022.02.20"]
[EventType "swiss"]
[EventCountry "ROU"]
[SourceTitle "playchess.com"]
[Source "ChessBase"]
[SourceQuality "1"]
[TimeControl "40/5400+30:900+30"]

1. e4 {[%emt 0:00:02]} c5 {[%emt 0:00:16]} 2. Nc3 {[%emt 0:00:04]} Nc6 {[%emt 0:00:16]} 3. f4 {[%emt 0:00:05]} g6 {[%emt 0:00:31]} 4. Nf3 {[%emt 0:00:06]} Bg7 {[%emt 0:00:20]} 5. Bb5 {[%emt 0:00:10]} Nd4 {[%emt 0:00:36]} 6. Bd3 {[%emt 0:00:12]} d6 {[%emt 0:01:57]} 7. Nxd4 {[%emt 0:02:29]} cxd4 {[%emt 0:00:26]} 8. Ne2 {[%emt 0:00:18]} Nf6 {[%emt 0:01:06]} 9. O-O {[%emt 0:00:52]} O-O {[%emt 0:00:45]} 10. c3 {[%emt 0:00:38]} dxc3 {[%emt 0:00:29]} 11. bxc3 {[%emt 0:00:11]} d5 {[%emt 0:09:49]} 12. e5 {[%emt 0:03:25]} Ne4 {[%emt 0:01:12]} 13. Bxe4 {[%emt 0:18:23]} dxe4 {[%emt 0:00:06]} 14. Ng3 {[%emt 0:00:21]} Bf5 {[%emt 0:14:20]} 15. Nxf5 {[%emt 0:00:18]} gxf5 {[%emt 0:00:04]} 16. Rb1 {[%emt 0:03:48]} b6 {[%emt 0:06:15]} 17. d4 {[%emt 0:10:19]} exd3 {[%emt 0:04:50]} 18. Rf3 {[%emt 0:00:20]} Qc7 {[%emt 0:12:29]} 19. Rxd3 {[%emt 0:11:17]} Rfd8 {[%emt 0:01:27]} 20. Be3 {[%emt 0:01:14]} e6 {[%emt 0:08:13]} 21. Bd4 {[%emt 0:04:28]} Rd5 {[%emt 0:08:02]} 22. Rb2 {[%emt 0:10:58]} Rad8 {[%emt 0:04:56]} 23. Rbd2 {[%emt 0:12:15]} Qc4 {[%emt 0:03:13]} 24. Qe2 {[%emt 0:03:33]} b5 {[%emt 0:09:21]} 25. a3 {[%emt 0:04:34]} a5 {[%emt 0:09:08]} 26. Rb2 {[%emt 0:00:03]} Kh8 {[%emt 0:01:22]} 27. Rdd2 {[%emt 0:00:24]} Qxe2 {[%emt 0:00:15]} 28. Rxe2 {[%emt 0:00:01]} Bf8 {[%emt 0:00:37]} 29. Bb6 {[%emt 0:02:17]} Bc5+ {[%emt 0:01:10]} 30. Bxc5 {[%emt 0:00:08]} Rxc5 {[%emt 0:00:01]} 31. Re3 {[%emt 0:01:41]} Rdc8 {[%emt 0:01:26]} 32. Kf2 {[%emt 0:06:28]} Rxc3 {[%emt 0:00:46]} 33. Rxb5 {[%emt 0:00:31]} Rxe3 {[%emt 0:00:07]} 34. Kxe3 {[%emt 0:00:11]} Rc3+ {[%emt 0:00:05]} 35. Kd4 {[%emt 0:00:46]} Rxa3 {[%emt 0:00:04]} 36. Rb2 {[%emt 0:03:56]} Ra4+ {[%emt 0:01:41]} 37. Ke3 {[%emt 0:00:02]} Re4+ {[%emt 0:00:37]} 38. Kf3 {[%emt 0:00:02]} a4 {[%emt 0:00:37]} 39. h3 {[%emt 0:00:03]} Rc4 {[%emt 0:00:27]} 40. Ra2 {[%emt 0:00:00]} Rc3+ {[%emt 0:00:00]} 41. Kf2 {[%emt 0:00:40]} a3 {[%emt 0:00:23]} 42. Kg1 {[%emt 0:00:42]} Rb3 {[%emt 0:00:31]} 43. Kh2 {[%emt 0:00:22]} Kg7 {[%emt 0:00:49]} 44. h4 {[%emt 0:00:18]} Kg6 {[%emt 0:00:11]} 45. Ra1 {[%emt 0:00:41]} Kh5 {[%emt 0:00:07]} 46. g3 {[%emt 0:00:04]} Kg4 {[%emt 0:00:11]} 47. h5 {[%emt 0:00:18]} Rb2+ {[%emt 0:00:06]} 48. Kg1 {[%emt 0:00:11]} a2 {[%emt 0:00:01]} 0-1